[Event "Titled Tuesday Blitz July 4 Late 2023"]
[White "BenchGM"]
[Black "Vlassov, Nikolai"]
[BlackFideId "4103360"]
[WhiteElo "2364"]
[BlackElo "2583"]
[Result "1-0"]
[Round "2"]
[TimeControl "180+2"]
[Date "2023.07.04"]
[WhiteClock "0:00:09"]
[BlackClock "0:00:00"]
[Board "124"]

1. e4 {[%clk 0:03:00]}  Nc6 {[%clk 0:02:57]} 2. Nf3 {[%clk 0:03:00]}  d5 {[%clk 0:02:57]} 3. exd5 {[%clk 0:03:00]}  Qxd5 {[%clk 0:02:56]} 4. Nc3 {[%clk 0:02:59]}  Qa5 {[%clk 0:02:56]} 5. d4 {[%clk 0:02:58]}  Bg4 {[%clk 0:02:55]} 6. Bb5 {[%clk 0:02:30]}  O-O-O {[%clk 0:02:54]} 7. Bxc6 {[%clk 0:02:12]}  bxc6 {[%clk 0:02:53]} 8. Bd2 {[%clk 0:01:43]}  Qf5 {[%clk 0:02:43]} 9. Qe2 {[%clk 0:01:29]}  Bxf3 {[%clk 0:02:41]} 10. gxf3 {[%clk 0:01:21]}  e6 {[%clk 0:02:39]} 11. Qa6+ {[%clk 0:01:15]}  Kd7 {[%clk 0:02:39]} 12. O-O-O {[%clk 0:01:03]}  Bd6 {[%clk 0:02:18]} 13. Ne4 {[%clk 0:00:52]}  Ne7 {[%clk 0:02:16]} 14. Ba5 {[%clk 0:00:31]}  Qb5 {[%clk 0:02:06]} 15. Nc5+ {[%clk 0:00:24]}  Ke8 {[%clk 0:01:32]} 16. Qxa7 {[%clk 0:00:21]}  Nc8 {[%clk 0:00:37]} 17. Qa6 {[%clk 0:00:20]}  Qxa6 {[%clk 0:00:32]} 18. Nxa6 {[%clk 0:00:20]}  Nb6 {[%clk 0:00:31]} 19. b3 {[%clk 0:00:16]}  Ra8 {[%clk 0:00:29]} 20. Bxb6 {[%clk 0:00:16]}  cxb6 {[%clk 0:00:20]} 21. c4 {[%clk 0:00:15]}  Rxa6 {[%clk 0:00:20]} 22. a4 {[%clk 0:00:15]}  Bb4 {[%clk 0:00:18]} 23. Kc2 {[%clk 0:00:15]}  Ke7 {[%clk 0:00:18]} 24. d5 {[%clk 0:00:15]}  cxd5 {[%clk 0:00:18]} 25. cxd5 {[%clk 0:00:15]}  Rc8+ {[%clk 0:00:18]} 26. Kb1 {[%clk 0:00:15]}  b5 {[%clk 0:00:17]} 27. dxe6 {[%clk 0:00:13]}  Rxe6 {[%clk 0:00:17]} 28. axb5 {[%clk 0:00:12]}  Re2 {[%clk 0:00:16]} 29. Rd4 {[%clk 0:00:11]}  Bc3 {[%clk 0:00:14]} 30. Re4+ {[%clk 0:00:11]}  Rxe4 {[%clk 0:00:14]} 31. fxe4 {[%clk 0:00:12]}  Rb8 {[%clk 0:00:13]} 32. Rc1 {[%clk 0:00:12]}  Bd4 {[%clk 0:00:13]} 33. Rc7+ {[%clk 0:00:11]}  Ke6 {[%clk 0:00:13]} 34. Rc6+ {[%clk 0:00:11]}  Ke5 {[%clk 0:00:14]} 35. Rc7 {[%clk 0:00:12]}  Rxb5 {[%clk 0:00:12]} 36. Rxf7 {[%clk 0:00:12]}  Kxe4 {[%clk 0:00:10]} 37. Kc2 {[%clk 0:00:10]}  Rf5 {[%clk 0:00:06]} 38. Re7+ {[%clk 0:00:10]}  Kf3 {[%clk 0:00:04]} 39. Kd3 {[%clk 0:00:09]}  Rd5 {[%clk 0:00:00]} 40. Kc4 {[%clk 0:00:09]} 1-0


[Site "https://www.chess.com"]

[Event "Titled Tuesday Blitz July 4 Late 2023"]
[White "Palencia Morales, Wilson Guillermo"]
[Black "Silva, Pedro Gil Ferreira Da"]
[WhiteFideId "4401859"]
[BlackFideId "1946102"]
[WhiteElo "2567"]
[BlackElo "2357"]
[Result "0-1"]
[Round "2"]
[TimeControl "180+2"]
[Date "2023.07.04"]
[WhiteClock "0:00:00"]
[BlackClock "0:00:23"]
[Board "126"]

1. d4 {[%clk 0:03:00]}  Nf6 {[%clk 0:02:57]} 2. c4 {[%clk 0:03:00]}  e6 {[%clk 0:02:57]} 3. Nf3 {[%clk 0:03:00]}  Bb4+ {[%clk 0:02:56]} 4. Nbd2 {[%clk 0:02:59]}  O-O {[%clk 0:02:56]} 5. a3 {[%clk 0:02:57]}  Be7 {[%clk 0:02:56]} 6. e4 {[%clk 0:02:56]}  d6 {[%clk 0:02:56]} 7. e5 {[%clk 0:02:54]}  dxe5 {[%clk 0:02:55]} 8. dxe5 {[%clk 0:02:55]}  Nfd7 {[%clk 0:02:55]} 9. Qc2 {[%clk 0:02:39]}  Nc6 {[%clk 0:02:50]} 10. Qe4 {[%clk 0:02:29]}  Nc5 {[%clk 0:02:45]} 11. Qe3 {[%clk 0:02:28]}  a5 {[%clk 0:02:45]} 12. b3 {[%clk 0:02:22]}  b6 {[%clk 0:02:42]} 13. Bb2 {[%clk 0:01:49]}  Bb7 {[%clk 0:02:41]} 14. Be2 {[%clk 0:01:46]}  Qd7 {[%clk 0:02:38]} 15. O-O {[%clk 0:01:44]}  Rad8 {[%clk 0:02:38]} 16. Rfd1 {[%clk 0:01:43]}  Qc8 {[%clk 0:02:38]} 17. Nf1 {[%clk 0:01:23]}  Rxd1 {[%clk 0:02:28]} 18. Bxd1 {[%clk 0:01:22]}  Rd8 {[%clk 0:02:29]} 19. Bc2 {[%clk 0:01:22]}  Rd7 {[%clk 0:02:14]} 20. Ng3 {[%clk 0:01:15]}  Qd8 {[%clk 0:02:12]} 21. Nh5 {[%clk 0:01:12]}  Nd3 {[%clk 0:02:11]} 22. Bc3 {[%clk 0:00:15]}  Bc5 {[%clk 0:02:10]} 23. Qe4 {[%clk 0:00:14]}  Ne7 {[%clk 0:00:57]} 24. Qg4 {[%clk 0:00:13]}  Ng6 {[%clk 0:00:57]} 25. Rf1 {[%clk 0:00:12]}  Bxa3 {[%clk 0:00:30]} 26. h4 {[%clk 0:00:10]}  Bc5 {[%clk 0:00:28]} 27. Ng3 {[%clk 0:00:09]}  Bxf3 {[%clk 0:00:28]} 28. gxf3 {[%clk 0:00:08]}  Qxh4 {[%clk 0:00:28]} 29. Qxh4 {[%clk 0:00:06]}  Nxh4 {[%clk 0:00:29]} 30. Rd1 {[%clk 0:00:06]}  Nxf3+ {[%clk 0:00:25]} 31. Kf1 {[%clk 0:00:06]}  Ndxe5 {[%clk 0:00:23]} 32. Bxe5 {[%clk 0:00:04]}  Nxe5 {[%clk 0:00:23]} 33. Rxd7 {[%clk 0:00:03]}  Nxd7 {[%clk 0:00:23]} 34. Ne4 {[%clk 0:00:03]}  f5 {[%clk 0:00:23]} 35. f3 {[%clk 0:00:00]}  fxe4 {[%clk 0:00:23]} 0-1


[Site "https://www.chess.com"]

[Event "Titled Tuesday Blitz July 4 Late 2023"]
[White "Bazilius, Augustinas"]
[Black "Yurovskykh, Oleksandr"]
[WhiteFideId "12832251"]
[BlackFideId "14134020"]
[WhiteElo "2355"]
[BlackElo "2566"]
[Result "0-1"]
[Round "2"]
[TimeControl "180+2"]
[Date "2023.07.04"]
[WhiteClock "0:00:05"]
[BlackClock "0:00:36"]
[Board "127"]

1. d4 {[%clk 0:02:50]}  d5 {[%clk 0:02:59]} 2. c4 {[%clk 0:02:49]}  e6 {[%clk 0:03:00]} 3. Nf3 {[%clk 0:02:47]}  Nf6 {[%clk 0:03:00]} 4. g3 {[%clk 0:02:47]}  Bb4+ {[%clk 0:02:59]} 5. Bd2 {[%clk 0:02:46]}  Be7 {[%clk 0:02:59]} 6. Bg2 {[%clk 0:02:46]}  O-O {[%clk 0:03:00]} 7. O-O {[%clk 0:02:45]}  c6 {[%clk 0:03:00]} 8. Qc2 {[%clk 0:02:45]}  Nbd7 {[%clk 0:03:00]} 9. Bf4 {[%clk 0:02:44]}  b6 {[%clk 0:02:54]} 10. Rd1 {[%clk 0:02:41]}  Bb7 {[%clk 0:02:51]} 11. Nc3 {[%clk 0:02:41]}  dxc4 {[%clk 0:02:47]} 12. Nd2 {[%clk 0:02:41]}  Nd5 {[%clk 0:02:42]} 13. Nxc4 {[%clk 0:02:40]}  Nxf4 {[%clk 0:02:40]} 14. gxf4 {[%clk 0:02:41]}  Qc7 {[%clk 0:02:33]} 15. e3 {[%clk 0:02:36]}  Rac8 {[%clk 0:02:32]} 16. Rac1 {[%clk 0:02:12]}  Qb8 {[%clk 0:02:30]} 17. a3 {[%clk 0:01:50]}  c5 {[%clk 0:02:24]} 18. d5 {[%clk 0:01:49]}  exd5 {[%clk 0:02:20]} 19. Nxd5 {[%clk 0:01:50]}  Bxd5 {[%clk 0:02:16]} 20. Bxd5 {[%clk 0:01:45]}  Nf6 {[%clk 0:02:15]} 21. Bf3 {[%clk 0:01:38]}  Rfd8 {[%clk 0:02:15]} 22. Ne5 {[%clk 0:01:37]}  Rxd1+ {[%clk 0:02:08]} 23. Rxd1 {[%clk 0:01:38]}  Rd8 {[%clk 0:02:07]} 24. Nc6 {[%clk 0:01:35]}  Rxd1+ {[%clk 0:02:06]} 25. Qxd1 {[%clk 0:01:36]}  Qc7 {[%clk 0:02:05]} 26. Nxe7+ {[%clk 0:01:21]}  Qxe7 {[%clk 0:02:05]} 27. e4 {[%clk 0:01:11]}  Qd7 {[%clk 0:01:57]} 28. Qxd7 {[%clk 0:01:05]}  Nxd7 {[%clk 0:01:58]} 29. Kf1 {[%clk 0:01:03]}  Kf8 {[%clk 0:01:51]} 30. Ke2 {[%clk 0:01:00]}  Ke7 {[%clk 0:01:52]} 31. Kd3 {[%clk 0:00:59]}  Kd6 {[%clk 0:01:48]} 32. Kc4 {[%clk 0:00:56]}  f6 {[%clk 0:01:47]} 33. Kb5 {[%clk 0:00:36]}  Kc7 {[%clk 0:01:36]} 34. Bg4 {[%clk 0:00:36]}  Nf8 {[%clk 0:01:35]} 35. e5 {[%clk 0:00:35]}  Ng6 {[%clk 0:01:22]} 36. e6 {[%clk 0:00:21]}  Ne7 {[%clk 0:01:06]} 37. Ka6 {[%clk 0:00:17]}  f5 {[%clk 0:00:57]} 38. Bf3 {[%clk 0:00:16]}  Kb8 {[%clk 0:00:57]} 39. Bg2 {[%clk 0:00:06]}  Nc8 {[%clk 0:00:38]} 40. Bc6 {[%clk 0:00:05]}  Ne7 {[%clk 0:00:38]} 41. Bd7 {[%clk 0:00:05]}  Nd5 {[%clk 0:00:36]} 42. Bc6 {[%clk 0:00:05]}  Nc7# {[%clk 0:00:36]} 0-1


[Site "https://www.chess.com"]

[Event "Titled Tuesday Blitz July 4 Late 2023"]
[White "Siniauski, Artsiom"]
[Black "Seletsky, Grigory"]
[WhiteFideId "13512269"]
[BlackFideId "14112191"]
[WhiteElo "2549"]
[BlackElo "2352"]
[Result "1-0"]
[Round "2"]
[TimeControl "180+2"]
[Date "2023.07.04"]
[WhiteClock "0:00:19"]
[BlackClock "0:00:46"]
[Board "130"]

1. e4 {[%clk 0:02:20]}  c5 {[%clk 0:02:58]} 2. Nf3 {[%clk 0:02:20]}  d6 {[%clk 0:02:58]} 3. c3 {[%clk 0:02:20]}  Nf6 {[%clk 0:02:57]} 4. Be2 {[%clk 0:02:21]}  Nc6 {[%clk 0:02:56]} 5. d4 {[%clk 0:02:21]}  cxd4 {[%clk 0:02:56]} 6. cxd4 {[%clk 0:02:22]}  Nxe4 {[%clk 0:02:55]} 7. d5 {[%clk 0:02:22]}  Qa5+ {[%clk 0:02:55]} 8. Nc3 {[%clk 0:02:23]}  Nxc3 {[%clk 0:02:56]} 9. bxc3 {[%clk 0:02:23]}  Nd8 {[%clk 0:02:56]} 10. O-O {[%clk 0:02:22]}  e5 {[%clk 0:02:56]} 11. dxe6 {[%clk 0:02:21]}  Nxe6 {[%clk 0:02:56]} 12. Rb1 {[%clk 0:02:15]}  a6 {[%clk 0:02:55]} 13. Be3 {[%clk 0:02:14]}  Nc5 {[%clk 0:02:52]} 14. Re1 {[%clk 0:02:05]}  Be7 {[%clk 0:02:52]} 15. Bc4 {[%clk 0:01:58]}  Qc7 {[%clk 0:02:43]} 16. Bxc5 {[%clk 0:01:42]}  dxc5 {[%clk 0:02:42]} 17. Qe2 {[%clk 0:01:41]}  b5 {[%clk 0:02:22]} 18. Bd5 {[%clk 0:01:35]}  Ra7 {[%clk 0:02:22]} 19. a4 {[%clk 0:00:52]}  bxa4 {[%clk 0:02:12]} 20. Qc4 {[%clk 0:00:52]}  O-O {[%clk 0:02:10]} 21. Ne5 {[%clk 0:00:52]}  g6 {[%clk 0:01:45]} 22. Nc6 {[%clk 0:00:33]}  Bd6 {[%clk 0:01:35]} 23. Nxa7 {[%clk 0:00:33]}  Qxa7 {[%clk 0:01:31]} 24. Qxa4 {[%clk 0:00:33]}  Bf5 {[%clk 0:01:28]} 25. Rb7 {[%clk 0:00:31]}  Qa8 {[%clk 0:01:19]} 26. Qb3 {[%clk 0:00:27]}  Qd8 {[%clk 0:01:16]} 27. Bxf7+ {[%clk 0:00:25]}  Kh8 {[%clk 0:01:15]} 28. g3 {[%clk 0:00:22]}  Qf6 {[%clk 0:01:11]} 29. Qd5 {[%clk 0:00:22]}  Be6 {[%clk 0:00:46]} 30. Qxe6 {[%clk 0:00:19]} 1-0


[Site "https://www.chess.com"]

[Event "Titled Tuesday Blitz July 4 Late 2023"]
[White "Ambartsumova, Karina"]
[Black "Wartiovaara, Oliver"]
[WhiteFideId "4166299"]
[BlackFideId "513024"]
[WhiteElo "2548"]
[BlackElo "2351"]
[Result "1-0"]
[Round "2"]
[TimeControl "180+2"]
[Date "2023.07.04"]
[WhiteClock "0:00:55"]
[BlackClock "0:02:17"]
[Board "131"]

1. e4 {[%clk 0:03:00]}  e6 {[%clk 0:02:57]} 2. d4 {[%clk 0:02:59]}  d5 {[%clk 0:02:58]} 3. Nc3 {[%clk 0:02:59]}  Bb4 {[%clk 0:02:53]} 4. Ne2 {[%clk 0:02:57]}  dxe4 {[%clk 0:02:51]} 5. a3 {[%clk 0:02:56]}  Be7 {[%clk 0:02:50]} 6. Nxe4 {[%clk 0:02:54]}  Nd7 {[%clk 0:02:50]} 7. N2g3 {[%clk 0:02:52]}  Ngf6 {[%clk 0:02:49]} 8. Bd3 {[%clk 0:02:51]}  Nxe4 {[%clk 0:02:48]} 9. Nxe4 {[%clk 0:02:52]}  Nf6 {[%clk 0:02:47]} 10. O-O {[%clk 0:02:49]}  O-O {[%clk 0:02:43]} 11. c3 {[%clk 0:02:44]}  b6 {[%clk 0:02:41]} 12. Qf3 {[%clk 0:02:34]}  Rb8 {[%clk 0:02:36]} 13. Nxf6+ {[%clk 0:02:26]}  Bxf6 {[%clk 0:02:37]} 14. Be4 {[%clk 0:02:26]}  Qe7 {[%clk 0:02:32]} 15. Bf4 {[%clk 0:02:18]}  e5 {[%clk 0:02:31]} 16. dxe5 {[%clk 0:02:15]}  Bxe5 {[%clk 0:02:32]} 17. Bxh7+ {[%clk 0:02:08]}  Kxh7 {[%clk 0:02:30]} 18. Qh5+ {[%clk 0:02:06]}  Kg8 {[%clk 0:02:30]} 19. Bxe5 {[%clk 0:01:45]}  f6 {[%clk 0:02:28]} 20. Bg3 {[%clk 0:01:31]}  Be6 {[%clk 0:02:27]} 21. Rfe1 {[%clk 0:01:31]}  Qf7 {[%clk 0:02:26]} 22. Qxf7+ {[%clk 0:01:30]}  Kxf7 {[%clk 0:02:26]} 23. Bxc7 {[%clk 0:01:29]}  Rbc8 {[%clk 0:02:26]} 24. Bf4 {[%clk 0:01:24]}  Rc4 {[%clk 0:02:25]} 25. Be3 {[%clk 0:01:22]}  Rh8 {[%clk 0:02:22]} 26. Rad1 {[%clk 0:01:20]}  Rch4 {[%clk 0:02:21]} 27. h3 {[%clk 0:01:21]}  g5 {[%clk 0:02:21]} 28. f3 {[%clk 0:01:15]}  f5 {[%clk 0:02:19]} 29. Bxg5 {[%clk 0:01:13]}  R4h5 {[%clk 0:02:18]} 30. h4 {[%clk 0:01:04]}  Rc8 {[%clk 0:02:17]} 31. Rd6 {[%clk 0:01:03]}  Bc4 {[%clk 0:02:16]} 32. Rf6+ {[%clk 0:01:00]}  Kg7 {[%clk 0:02:17]} 33. Re7+ {[%clk 0:00:55]}  Kg8 {[%clk 0:02:17]} 1-0


[Site "https://www.chess.com"]

[Event "Titled Tuesday Blitz July 4 Late 2023"]
[White "ElenGajger"]
[Black "Francisco Guecamburu, Candela Be"]
[BlackFideId "160911"]
[WhiteElo "2351"]
[BlackElo "2545"]
[Result "1-0"]
[Round "2"]
[TimeControl "180+2"]
[Date "2023.07.04"]
[WhiteClock "0:00:29"]
[BlackClock "0:00:06"]
[Board "132"]

1. e4 {[%clk 0:03:00]}  c5 {[%clk 0:03:00]} 2. Nc3 {[%clk 0:02:59]}  g6 {[%clk 0:03:00]} 3. d4 {[%clk 0:02:54]}  cxd4 {[%clk 0:03:00]} 4. Qxd4 {[%clk 0:02:54]}  Nf6 {[%clk 0:03:00]} 5. Nf3 {[%clk 0:02:51]}  Nc6 {[%clk 0:03:00]} 6. Qe3 {[%clk 0:02:52]}  d6 {[%clk 0:03:00]} 7. b3 {[%clk 0:02:52]}  Bg7 {[%clk 0:03:00]} 8. Bb2 {[%clk 0:02:52]}  O-O {[%clk 0:03:01]} 9. O-O-O {[%clk 0:02:53]}  Ng4 {[%clk 0:02:53]} 10. Qe1 {[%clk 0:02:48]}  Qb6 {[%clk 0:02:49]} 11. Nd5 {[%clk 0:02:37]}  Bxb2+ {[%clk 0:02:31]} 12. Kxb2 {[%clk 0:02:35]}  Qxf2 {[%clk 0:02:31]} 13. Qc3 {[%clk 0:02:31]}  Qc5 {[%clk 0:02:27]} 14. Qxc5 {[%clk 0:02:22]}  dxc5 {[%clk 0:02:28]} 15. Rd2 {[%clk 0:02:21]}  e6 {[%clk 0:02:19]} 16. Nc7 {[%clk 0:02:20]}  Rb8 {[%clk 0:02:19]} 17. Bb5 {[%clk 0:02:07]}  Nce5 {[%clk 0:02:17]} 18. h3 {[%clk 0:02:04]}  Nxf3 {[%clk 0:02:17]} 19. gxf3 {[%clk 0:02:04]}  Nf6 {[%clk 0:02:13]} 20. Rhd1 {[%clk 0:01:43]}  a6 {[%clk 0:02:12]} 21. e5 {[%clk 0:01:25]}  Nh5 {[%clk 0:02:06]} 22. Be8 {[%clk 0:01:06]}  f6 {[%clk 0:01:04]} 23. Rd3 {[%clk 0:01:04]}  fxe5 {[%clk 0:00:56]} 24. Rd8 {[%clk 0:01:03]}  Nf6 {[%clk 0:00:53]} 25. a4 {[%clk 0:00:51]}  Kg7 {[%clk 0:00:33]} 26. a5 {[%clk 0:00:49]}  g5 {[%clk 0:00:27]} 27. Ba4 {[%clk 0:00:49]}  Rxd8 {[%clk 0:00:16]} 28. Rxd8 {[%clk 0:00:50]}  Kf7 {[%clk 0:00:17]} 29. c4 {[%clk 0:00:45]}  Ke7 {[%clk 0:00:17]} 30. Rh8 {[%clk 0:00:43]}  Kd6 {[%clk 0:00:12]} 31. Ne8+ {[%clk 0:00:43]}  Nxe8 {[%clk 0:00:13]} 32. Rxe8 {[%clk 0:00:42]}  h6 {[%clk 0:00:04]} 33. Kc3 {[%clk 0:00:42]}  Kc7 {[%clk 0:00:04]} 34. Re7+ {[%clk 0:00:42]}  Kd6 {[%clk 0:00:04]} 35. Re8 {[%clk 0:00:43]}  Kc7 {[%clk 0:00:05]} 36. Rh8 {[%clk 0:00:42]}  b6 {[%clk 0:00:03]} 37. Rh7+ {[%clk 0:00:41]}  Kd6 {[%clk 0:00:03]} 38. axb6 {[%clk 0:00:40]}  Rxb6 {[%clk 0:00:04]} 39. Rxh6 {[%clk 0:00:40]}  Bd7 {[%clk 0:00:04]} 40. Bxd7 {[%clk 0:00:40]}  Kxd7 {[%clk 0:00:05]} 41. Rg6 {[%clk 0:00:40]}  Rb8 {[%clk 0:00:05]} 42. Rxg5 {[%clk 0:00:39]}  Rh8 {[%clk 0:00:06]} 43. Rxe5 {[%clk 0:00:39]}  Kd6 {[%clk 0:00:06]} 44. Re3 {[%clk 0:00:34]}  Rxh3 {[%clk 0:00:07]} 45. Rd3+ {[%clk 0:00:35]}  Kc6 {[%clk 0:00:07]} 46. Re3 {[%clk 0:00:36]}  Kd6 {[%clk 0:00:07]} 47. Kd3 {[%clk 0:00:35]}  e5 {[%clk 0:00:06]} 48. Ke4 {[%clk 0:00:35]}  Ke6 {[%clk 0:00:06]} 49. Kd3 {[%clk 0:00:32]}  Rh4 {[%clk 0:00:05]} 50. Re4 {[%clk 0:00:31]}  Rh3 {[%clk 0:00:05]} 51. Ke3 {[%clk 0:00:31]}  Rh1 {[%clk 0:00:05]} 52. f4 {[%clk 0:00:30]}  Rh3+ {[%clk 0:00:03]} 53. Kd2 {[%clk 0:00:30]}  Rxb3 {[%clk 0:00:02]} 54. Rxe5+ {[%clk 0:00:30]}  Kd6 {[%clk 0:00:03]} 55. Rd5+ {[%clk 0:00:31]}  Kc6 {[%clk 0:00:04]} 56. f5 {[%clk 0:00:31]}  Rf3 {[%clk 0:00:04]} 57. Ke2 {[%clk 0:00:31]}  Rf4 {[%clk 0:00:04]} 58. Kd3 {[%clk 0:00:31]}  a5 {[%clk 0:00:05]} 59. Re5 {[%clk 0:00:31]}  a4 {[%clk 0:00:05]} 60. Re6+ {[%clk 0:00:31]}  Kd7 {[%clk 0:00:05]} 61. Rf6 {[%clk 0:00:29]}  a3 {[%clk 0:00:05]} 62. Kc3 {[%clk 0:00:29]}  Rf3+ {[%clk 0:00:04]} 63. Kc2 {[%clk 0:00:29]}  Ke7 {[%clk 0:00:04]} 64. Re6+ {[%clk 0:00:29]}  Kd7 {[%clk 0:00:03]} 65. Re5 {[%clk 0:00:30]}  Kd6 {[%clk 0:00:04]} 66. Rd5+ {[%clk 0:00:30]}  Kc6 {[%clk 0:00:04]} 67. Re5 {[%clk 0:00:30]}  Kd6 {[%clk 0:00:04]} 68. Re6+ {[%clk 0:00:30]}  Kd7 {[%clk 0:00:04]} 69. Rf6 {[%clk 0:00:30]}  Ke7 {[%clk 0:00:04]} 70. Ra6 {[%clk 0:00:30]}  Rxf5 {[%clk 0:00:04]} 71. Rxa3 {[%clk 0:00:31]}  Rf4 {[%clk 0:00:03]} 72. Kb3 {[%clk 0:00:29]}  Rf3+ {[%clk 0:00:03]} 73. Ka4 {[%clk 0:00:28]}  Rxa3+ {[%clk 0:00:04]} 74. Kxa3 {[%clk 0:00:29]}  Ke6 {[%clk 0:00:04]} 75. Ka4 {[%clk 0:00:29]}  Ke5 {[%clk 0:00:05]} 76. Ka5 {[%clk 0:00:29]}  Ke4 {[%clk 0:00:05]} 77. Kb6 {[%clk 0:00:29]}  Kd4 {[%clk 0:00:04]} 78. Kb5 {[%clk 0:00:29]}  Ke5 {[%clk 0:00:04]} 79. Kxc5 {[%clk 0:00:29]}  Ke6 {[%clk 0:00:05]} 80. Kc6 {[%clk 0:00:30]}  Ke7 {[%clk 0:00:05]} 81. Kc7 {[%clk 0:00:30]}  Ke6 {[%clk 0:00:05]} 82. c5 {[%clk 0:00:29]}  Kd5 {[%clk 0:00:06]} 1-0


[Site "https://www.chess.com"]

[Event "Titled Tuesday Blitz July 4 Late 2023"]
[White "Djabri, Massinas"]
[Black "Sousa, Andre Ventura"]
[WhiteFideId "7905726"]
[BlackFideId "1917617"]
[WhiteElo "2351"]
[BlackElo "2544"]
[Result "0-1"]
[Round "2"]
[TimeControl "180+2"]
[Date "2023.07.04"]
[WhiteClock "0:00:02"]
[BlackClock "0:00:23"]
[Board "133"]

1. d4 {[%clk 0:03:00]}  Nf6 {[%clk 0:03:00]} 2. c4 {[%clk 0:03:00]}  e6 {[%clk 0:03:00]} 3. Nf3 {[%clk 0:03:01]}  Bb4+ {[%clk 0:02:59]} 4. Bd2 {[%clk 0:03:01]}  Qe7 {[%clk 0:02:59]} 5. a3 {[%clk 0:03:00]}  Bxd2+ {[%clk 0:02:59]} 6. Qxd2 {[%clk 0:03:01]}  d6 {[%clk 0:02:58]} 7. Nc3 {[%clk 0:03:00]}  O-O {[%clk 0:02:57]} 8. O-O-O {[%clk 0:03:00]}  e5 {[%clk 0:02:54]} 9. e3 {[%clk 0:02:49]}  Nc6 {[%clk 0:02:48]} 10. Nd5 {[%clk 0:02:39]}  Nxd5 {[%clk 0:02:46]} 11. cxd5 {[%clk 0:02:40]}  Nb8 {[%clk 0:02:46]} 12. dxe5 {[%clk 0:02:36]}  dxe5 {[%clk 0:02:47]} 13. Qc3 {[%clk 0:02:30]}  e4 {[%clk 0:02:33]} 14. Nd4 {[%clk 0:02:29]}  Bg4 {[%clk 0:02:28]} 15. Be2 {[%clk 0:02:21]}  Bxe2 {[%clk 0:02:27]} 16. Nxe2 {[%clk 0:02:22]}  Nd7 {[%clk 0:02:27]} 17. Kb1 {[%clk 0:02:12]}  Ne5 {[%clk 0:02:21]} 18. Nf4 {[%clk 0:01:37]}  Rfd8 {[%clk 0:02:09]} 19. Rd4 {[%clk 0:01:22]}  Ng4 {[%clk 0:02:07]} 20. Qc2 {[%clk 0:01:15]}  Nf6 {[%clk 0:02:00]} 21. h4 {[%clk 0:00:56]}  Rd7 {[%clk 0:01:57]} 22. g4 {[%clk 0:00:42]}  Rad8 {[%clk 0:01:46]} 23. g5 {[%clk 0:00:29]}  Nxd5 {[%clk 0:01:45]} 24. Rxe4 {[%clk 0:00:30]}  Qd6 {[%clk 0:01:30]} 25. Rd4 {[%clk 0:00:21]}  c6 {[%clk 0:01:25]} 26. Nxd5 {[%clk 0:00:19]}  cxd5 {[%clk 0:01:26]} 27. Rhd1 {[%clk 0:00:19]}  Qh2 {[%clk 0:01:17]} 28. Qd2 {[%clk 0:00:18]}  g6 {[%clk 0:01:12]} 29. Ka2 {[%clk 0:00:19]}  Qg2 {[%clk 0:01:04]} 30. Qc2 {[%clk 0:00:19]}  Rd6 {[%clk 0:01:01]} 31. R1d2 {[%clk 0:00:20]}  Rc6 {[%clk 0:01:01]} 32. Qb3 {[%clk 0:00:20]}  Rb6 {[%clk 0:00:57]} 33. Qc2 {[%clk 0:00:20]}  Qf3 {[%clk 0:00:50]} 34. e4 {[%clk 0:00:21]}  Rbd6 {[%clk 0:00:45]} 35. exd5 {[%clk 0:00:20]}  Rxd5 {[%clk 0:00:42]} 36. R2d3 {[%clk 0:00:17]}  Qxd3 {[%clk 0:00:38]} 37. Rxd3 {[%clk 0:00:17]}  Rxd3 {[%clk 0:00:38]} 38. Qc7 {[%clk 0:00:17]}  R3d7 {[%clk 0:00:38]} 39. Qe5 {[%clk 0:00:17]}  a6 {[%clk 0:00:34]} 40. f4 {[%clk 0:00:17]}  Rd5 {[%clk 0:00:30]} 41. Qe7 {[%clk 0:00:17]}  R8d7 {[%clk 0:00:28]} 42. Qe8+ {[%clk 0:00:17]}  Kg7 {[%clk 0:00:29]} 43. Qe3 {[%clk 0:00:15]}  h6 {[%clk 0:00:29]} 44. Qc3+ {[%clk 0:00:14]}  Kh7 {[%clk 0:00:29]} 45. Qf6 {[%clk 0:00:14]}  Rf5 {[%clk 0:00:29]} 46. Qc3 {[%clk 0:00:12]}  Rxf4 {[%clk 0:00:28]} 47. gxh6 {[%clk 0:00:11]}  Rfd4 {[%clk 0:00:25]} 48. Qc8 {[%clk 0:00:09]}  f5 {[%clk 0:00:21]} 49. Qf8 {[%clk 0:00:08]}  Rxh4 {[%clk 0:00:19]} 50. Qe8 {[%clk 0:00:06]}  Rhd4 {[%clk 0:00:19]} 51. Qf8 {[%clk 0:00:06]}  f4 {[%clk 0:00:19]} 52. Kb3 {[%clk 0:00:06]}  f3 {[%clk 0:00:19]} 53. Ka2 {[%clk 0:00:05]}  Rd3 {[%clk 0:00:20]} 54. Kb1 {[%clk 0:00:03]}  g5 {[%clk 0:00:20]} 55. Ka2 {[%clk 0:00:01]}  g4 {[%clk 0:00:20]} 56. Qf5+ {[%clk 0:00:02]}  Kxh6 {[%clk 0:00:21]} 57. Qf6+ {[%clk 0:00:02]}  Kh5 {[%clk 0:00:21]} 58. Qf5+ {[%clk 0:00:03]}  Kh4 {[%clk 0:00:21]} 59. Qf4 {[%clk 0:00:03]}  Kh3 {[%clk 0:00:21]} 60. Qh6+ {[%clk 0:00:02]}  Kg2 {[%clk 0:00:22]} 61. Qf4 {[%clk 0:00:02]}  g3 {[%clk 0:00:22]} 62. Qg4 {[%clk 0:00:02]}  f2 {[%clk 0:00:23]} 0-1


[Site "https://www.chess.com"]

[Event "Titled Tuesday Blitz July 4 Late 2023"]
[White "Rodriguez, Santiago"]
[Black "Eggleston, Thomas A"]
[WhiteFideId "3000591"]
[BlackFideId "412139"]
[WhiteElo "2539"]
[BlackElo "2349"]
[Result "1-0"]
[Round "2"]
[TimeControl "180+2"]
[Date "2023.07.04"]
[WhiteClock "0:00:11"]
[BlackClock "0:00:00"]
[Board "134"]

1. d4 {[%clk 0:03:00]}  e6 {[%clk 0:03:00]} 2. Nf3 {[%clk 0:03:00]}  f5 {[%clk 0:03:00]} 3. Bf4 {[%clk 0:02:59]}  Nf6 {[%clk 0:02:59]} 4. e3 {[%clk 0:02:59]}  Be7 {[%clk 0:02:57]} 5. c4 {[%clk 0:03:00]}  b6 {[%clk 0:02:57]} 6. Nc3 {[%clk 0:03:00]}  Bb7 {[%clk 0:02:57]} 7. Bd3 {[%clk 0:03:01]}  Ne4 {[%clk 0:02:57]} 8. Qc2 {[%clk 0:03:00]}  Nxc3 {[%clk 0:02:45]} 9. Qxc3 {[%clk 0:02:55]}  O-O {[%clk 0:02:42]} 10. O-O-O {[%clk 0:02:54]}  Bf6 {[%clk 0:02:39]} 11. h4 {[%clk 0:02:53]}  c5 {[%clk 0:02:38]} 12. Bd6 {[%clk 0:02:49]}  Re8 {[%clk 0:02:36]} 13. Ne5 {[%clk 0:02:27]}  Nc6 {[%clk 0:02:28]} 14. dxc5 {[%clk 0:02:14]}  Rc8 {[%clk 0:02:23]} 15. Nxc6 {[%clk 0:02:03]}  Rxc6 {[%clk 0:02:19]} 16. Be5 {[%clk 0:02:01]}  Bxe5 {[%clk 0:02:16]} 17. Qxe5 {[%clk 0:02:02]}  Rxc5 {[%clk 0:02:16]} 18. Qd4 {[%clk 0:02:02]}  Qc7 {[%clk 0:02:11]} 19. Rhg1 {[%clk 0:01:50]}  b5 {[%clk 0:02:10]} 20. g4 {[%clk 0:01:49]}  bxc4 {[%clk 0:02:09]} 21. Bc2 {[%clk 0:01:48]}  Rd5 {[%clk 0:01:36]} 22. Qc3 {[%clk 0:01:42]}  Rxd1+ {[%clk 0:01:34]} 23. Bxd1 {[%clk 0:01:42]}  f4 {[%clk 0:01:32]} 24. Bc2 {[%clk 0:01:36]}  fxe3 {[%clk 0:01:28]} 25. Qxe3 {[%clk 0:01:33]}  e5 {[%clk 0:01:21]} 26. h5 {[%clk 0:01:28]}  d5 {[%clk 0:01:19]} 27. h6 {[%clk 0:01:16]}  g6 {[%clk 0:01:17]} 28. Qg5 {[%clk 0:01:06]}  Qf7 {[%clk 0:01:03]} 29. Re1 {[%clk 0:00:44]}  e4 {[%clk 0:00:58]} 30. f4 {[%clk 0:00:31]}  d4 {[%clk 0:00:52]} 31. f5 {[%clk 0:00:25]}  d3 {[%clk 0:00:50]} 32. Ba4 {[%clk 0:00:23]}  Rc8 {[%clk 0:00:29]} 33. Kd2 {[%clk 0:00:18]}  c3+ {[%clk 0:00:28]} 34. Ke3 {[%clk 0:00:13]}  d2 {[%clk 0:00:26]} 35. Rf1 {[%clk 0:00:13]}  c2 {[%clk 0:00:21]} 36. fxg6 {[%clk 0:00:13]}  Qxg6 {[%clk 0:00:00]} 37. Bb3+ {[%clk 0:00:11]} 1-0


[Site "https://www.chess.com"]